bitfinex-derivatives/quotes_SOLF0:USTF0_20250216
["timestamp","ask_amount","ask_price","bid_price","bid_amount"]
[1739697027214,0.03359145,192.81,192.77,0.03714313]
[1739697027418,5.1863,192.79,192.77,0.03714313]
[1739697027821,5.1859,192.8,192.77,0.03714313]
[1739697028217,0.03359145,192.81,192.77,0.03714313]
[1739697029221,5.21929145,192.81,192.77,5.22384313]
[1739697029922,5.21929145,192.81,192.77,12.65440493]
[1739697032323,5.186,192.8,192.77,12.65440493]
[1739697032826,0.03359145,192.81,192.79,5.1861]
[1739697033029,0.03359145,192.81,192.79,7.4305618]
[1739697033421,0.03359145,192.81,192.8,5.1859]
[1739697034431,1.5438,192.91,192.85,5.1845]
[1739697034922,5.1835,192.9,192.85,5.1845]
[1739697035323,5.1835,192.9,192.86,7.4305618]
[1739697035517,0.03411647,192.89,192.86,7.46844298]
[1739697036027,0.03411647,192.89,192.86,0.03788118]
[1739697036425,5.184,192.88,192.86,0.03788118]
[1739697038627,5.184,192.87,192.86,0.03788118]
[1739697041127,5.1838,192.88,192.86,0.03788118]
[1739697041329,0.03411647,192.89,192.86,0.03788118]
[1739697042126,5.21761647,192.89,192.86,0.03788118]
[1739697042428,0.03411647,192.89,192.86,0.03788118]
[1739697043331,5.184,192.88,192.86,0.03788118]
[1739697048642,5.184,192.87,192.86,0.03788118]
[1739697049235,5.1838,192.88,192.86,0.03788118]
[1739697050541,5.184,192.87,192.86,0.03788118]
[1739697053449,0.03411647,192.89,192.86,0.03788118]
[1739697053648,5.1838,192.88,192.86,0.03788118]
[1739697056147,5.184,192.87,192.86,0.03788118]
[1739697065760,0.03411647,192.89,192.86,7.46844298]
[1739697066155,5.21771647,192.89,192.86,7.46844298]
[1739697066754,5.1839,192.88,192.86,0.03788118]
[1739697067356,5.184,192.87,192.86,0.03788118]
[1739697068459,5.1843,192.86,192.82,12.6158618]
[1739697069362,5.1843,192.86,192.82,7.4305618]
[1739697069564,5.1843,192.86,192.82,12.65440193]
[1739697070162,5.1841,192.87,192.83,5.185]
[1739697070665,0.03411647,192.89,192.82,7.46900193]
[1739697070967,7.46467827,192.89,192.82,7.46900193]
[1739697071165,7.46467827,192.89,192.82,0.03844013]
[1739697071565,5.1851,192.84,192.82,0.03844013]
[1739697071962,0.03814712,192.85,192.82,0.03844013]
[1739697072566,5.1851,192.83,192.82,0.03844013]
[1739697076465,7.46870892,192.85,192.79,52.08049093]
[1739697076670,5.1859,192.8,192.79,52.08049093]
[1739697076965,5.1859,192.8,192.78,7.4305618]
[1739697077570,5.1862,192.79,192.78,7.4305618]
[1739697077867,0.03518475,192.81,192.77,0.03310044]
[1739697078072,7.4305618,192.83,192.76,7.4305618]
[1739697078274,0.03939117,192.81,192.77,0.03410156]
[1739697080369,5.1864,192.79,192.77,0.03410156]
[1739697081371,0.03939117,192.81,192.77,0.03410156]
[1739697081372,5.1865,192.78,192.77,0.03410156]
[1739697082869,5.1863,192.79,192.77,0.03410156]
[1739697084570,5.1861,192.8,192.77,0.03410156]
[1739697085675,5.1862,192.79,192.77,0.03410156]
[1739697088177,5.1865,192.78,192.77,0.03410156]
[1739697090582,5.1861,192.8,192.77,0.03410156]
[1739697091879,5.1861,192.8,192.77,5.22060156]
[1739697092381,5.1863,192.79,192.77,0.03410156]
[1739697094279,5.186,192.8,192.77,5.22080156]
[1739697095285,5.186,192.8,192.77,0.03410156]
[1739697095584,5.186,192.8,192.78,5.1864]
[1739697096598,0.03939117,192.81,192.78,5.1864]
[1739697096799,5.22509117,192.81,192.78,5.1864]
[1739697098695,0.03939117,192.81,192.78,7.4305618]
[1739697098904,0.03939117,192.81,192.8,12.6164618]
[1739697102904,1.6298,192.9,192.85,5.1844]
[1739697103205,1.6298,192.9,192.85,12.6149618]
[1739697103597,7.4305618,192.89,192.83,7.4305618]
[1739697103995,0.036363,192.88,192.84,0.03746789]
[1739697106000,5.1845,192.86,192.84,0.03746789]
[1739697106202,0.036363,192.88,192.84,0.03746789]
[1739697106705,0.036363,192.88,192.85,7.4305618]
[1739697107208,0.036363,192.88,192.85,12.6149618]
[1739697107403,0.036363,192.88,192.85,7.4305618]
[1739697107906,5.220363,192.88,192.85,7.4305618]
[1739697108907,5.220363,192.88,192.85,12.6150618]
[1739697110509,5.220363,192.88,192.85,7.4305618]
[1739697110701,5.1841,192.87,192.85,7.4305618]
[1739697110905,5.1841,192.87,192.84,5.22226789]
[1739697111610,0.036363,192.88,192.84,5.22226789]
[1739697111803,0.036363,192.88,192.86,5.1843]
[1739697112111,0.036363,192.88,192.85,7.4305618]
[1739697112313,0.036363,192.88,192.87,5.184]
[1739697113316,0.036363,192.88,192.87,12.6145618]
[1739697117623,5.1817,192.96,192.87,7.4305618]
[1739697117921,7.4305618,192.97,192.91,7.4305618]
[1739697118622,0.03843479,192.96,192.92,0.03765799]
[1739697119011,5.1819,192.95,192.92,0.03765799]
[1739697119614,5.1824,192.93,192.92,0.03765799]
[1739697129430,1.68713479,192.96,192.92,0.03765799]
[1739697130229,5.1819,192.95,192.92,0.03765799]
[1739697130629,1.68713479,192.96,192.92,0.03765799]
[1739697131026,5.1823,192.94,192.92,0.03765799]
[1739697132231,1.68713479,192.96,192.92,0.03765799]
[1739697132436,5.1824,192.93,192.92,0.03765799]
[1739697154932,5.1832,192.91,192.87,12.6144618]
[1739697155130,7.4305618,192.93,192.85,7.4305618]
[1739697155439,5.1835,192.9,192.85,7.4305618]
[1739697155642,5.1835,192.9,192.85,12.6148618]
[1739697156032,5.22178658,192.89,192.86,0.03763596]
[1739697157338,5.22178658,192.89,192.86,5.22193596]
[1739697160534,0.03828658,192.89,192.86,0.03763596]
[1739697160740,0.03828658,192.89,192.88,12.6143618]
[1739697160933,9.0359618,192.99,192.88,7.4305618]
[1739697161138,9.0359618,192.99,192.91,7.4305618]
[1739697162240,0.03922403,192.97,192.93,0.03905245]
[1739697163044,5.1823,192.94,192.93,0.03905245]
[1739697173650,5.1823,192.94,192.93,5.245e-05]
[1739697173849,5.1838,192.88,192.86,1.5449]
[1739697174249,7.4305618,192.91,192.86,6.7292]
[1739697174650,5.1837,192.89,192.86,1.5449]
[1739697174842,5.1837,192.89,192.86,1.5818421]
[1739697175046,5.21757888,192.89,192.86,1.5818421]
[1739697175450,5.1838,192.88,192.86,1.5818421]
[1739697176155,5.21747888,192.89,192.86,6.7661421]
[1739697179960,0.03387888,192.89,192.86,6.7661421]
[1739697180161,5.1838,192.88,192.86,1.5818421]
[1739697181461,5.21747888,192.89,192.86,6.7661421]
[1739697182754,0.03387888,192.89,192.86,1.5818421]
[1739697182960,5.1838,192.88,192.86,1.5818421]
[1739697184370,0.03387888,192.89,192.86,0.0369421]
[1739697184560,5.184,192.87,192.86,0.0369421]
[1739697194771,5.184,192.87,192.77,7.4305618]
[1739697194772,5.1856,192.81,192.77,7.4305618]
[1739697194961,7.4305618,192.84,192.75,59.51859926]
[1739697195161,7.4305618,192.82,192.75,59.51859926]
[1739697195365,5.1864,192.79,192.75,64.70579926]
[1739697195766,7.4305618,192.82,192.75,64.70579926]
[1739697195964,0.0341962,192.79,192.75,52.12606627]
[1739697196169,7.4305618,192.8,192.75,52.08803746]
[1739697196367,5.187,192.77,192.75,52.12723822]
[1739697197371,0.03775374,192.79,192.75,52.12723822]
[1739697199375,0.03775374,192.79,192.75,64.74500002]
[1739697199772,0.03775374,192.79,192.75,59.55780002]
[1739697199973,0.03775374,192.79,192.76,5.1869]
[1739697200377,0.03775374,192.79,192.75,59.55780002]
[1739697201073,0.03775374,192.79,192.77,5.1865]
[1739697201469,0.03775374,192.79,192.78,5.1865]
[1739697210371,0.03775374,192.79,192.77,12.6172618]
[1739697210572,0.03775374,192.79,192.75,7.46976256]
[1739697210974,0.03775374,192.79,192.75,0.03920076]
[1739697211168,5.1865,192.78,192.75,5.22620076]
[1739697211577,5.1865,192.78,192.75,0.03920076]
[1739697214275,5.1865,192.78,192.75,5.22640076]
[1739697214676,0.03775374,192.79,192.75,7.46976256]
[1739697215182,0.03775374,192.79,192.76,5.1868]
[1739697218086,0.03775374,192.79,192.77,5.1867]
[1739697218582,0.03775374,192.79,192.75,7.46976256]
[1739697218787,5.22405374,192.79,192.75,12.65696256]
[1739697219579,0.03775374,192.79,192.75,12.65696256]
[1739697219780,5.1865,192.78,192.75,7.46976256]
[1739697220588,5.1865,192.78,192.75,12.65696256]
[1739697222786,0.03775374,192.79,192.75,12.65696256]
[1739697222986,5.22405374,192.79,192.76,5.187]
[1739697223590,5.22405374,192.79,192.75,7.46976256]
[1739697223785,5.22405374,192.79,192.75,12.65676256]
[1739697224182,5.22405374,192.79,192.75,7.46976256]
[1739697224389,0.03775374,192.79,192.75,7.46976256]
[1739697225487,0.03775374,192.79,192.76,5.1868]
[1739697226785,5.22405374,192.79,192.76,5.1868]
[1739697228287,0.03775374,192.79,192.77,5.1867]
[1739697229589,5.22395374,192.79,192.76,5.1869]
[1739697233090,5.1865,192.78,192.75,12.65696256]
[1739697233390,5.1865,192.78,192.75,5.22640076]
[1739697234190,5.1865,192.78,192.75,0.03920076]
[1739697234393,5.1865,192.78,192.76,5.187]
[1739697236092,5.22395374,192.79,192.76,5.187]
[1739697236289,0.03775374,192.79,192.76,5.1869]
[1739697237893,5.22415374,192.79,192.76,5.1869]
[1739697239893,5.1865,192.78,192.76,5.1869]
[1739697240191,0.03775374,192.79,192.76,5.1869]
[1739697240496,5.22405374,192.79,192.76,5.1869]
[1739697241496,5.22405374,192.79,192.75,12.65696256]
[1739697244099,0.03775374,192.79,192.75,12.65696256]
[1739697244296,5.1865,192.78,192.75,12.65696256]
[1739697244801,5.22405374,192.79,192.76,5.1869]
[1739697245701,5.22405374,192.79,192.75,7.46976256]
[1739697245904,5.22405374,192.79,192.75,12.65696256]
[1739697246096,0.03775374,192.79,192.75,0.03920076]
[1739697246402,7.4305618,192.78,192.75,0.03920076]
[1739697246608,5.187,192.76,192.75,0.03920076]
[1739697246805,7.4305618,192.76,192.69,59.53460054]
[1739697247301,5.1883,192.72,192.69,52.10403874]
[1739697247805,5.1884,192.71,192.69,52.10403874]
[1739697247996,5.1884,192.71,192.69,52.13972419]
[1739697248299,0.03599254,192.72,192.69,52.13972419]
[1739697248897,0.03599254,192.72,192.69,59.57028599]
[1739697250306,0.03599254,192.72,192.71,7.4305618]
[1739697250796,0.03599254,192.72,192.71,12.6188618]
[1739697252307,0.03599254,192.72,192.71,7.4305618]
[1739697252508,0.03599254,192.72,192.7,5.1885]
[1739697252702,0.03599254,192.72,192.69,59.57028599]
[1739697254914,0.03599254,192.72,192.71,7.4305618]
[1739697255402,0.03599254,192.72,192.71,12.6188618]
[1739697256613,5.1864,192.79,192.75,5.1872]
[1739697257313,6.7491,192.8,192.76,5.187]
[1739697257615,1.59961403,192.8,192.76,0.03326158]
[1739697258315,5.22251403,192.8,192.76,12.65072338]
[1739697259013,5.22251403,192.8,192.76,7.46382338]
[1739697259213,0.03661403,192.8,192.77,5.1867]
[1739697260313,0.03661403,192.8,192.78,5.1864]
[1739697261418,0.03661403,192.8,192.76,7.46382338]
[1739697261719,0.03661403,192.8,192.78,7.4305618]
[1739697262109,0.03661403,192.8,192.79,5.1862]
[1739697262715,5.1841,192.87,192.78,7.4305618]
[1739697262917,1.5474,192.88,192.82,7.4305618]
[1739697263220,5.184,192.88,192.83,5.1851]
[1739697263417,5.184,192.88,192.82,7.4305618]
[1739697263616,53.74478776,192.89,192.82,7.4305618]
[1739697263818,0.03457784,192.87,192.84,5.1846]
[1739697264516,5.21867784,192.87,192.84,5.1846]
[1739697264721,0.03457784,192.87,192.84,5.1846]
[1739697265219,0.03457784,192.87,192.83,0.03929075]
[1739697265919,5.21867784,192.87,192.83,0.03929075]
[1739697266118,0.03457784,192.87,192.83,0.03929075]
[1739697268420,5.1845,192.86,192.83,0.03929075]
[1739697269020,5.1845,192.86,192.83,5.22439075]
[1739697270420,0.03457784,192.87,192.83,0.03929075]
[1739697270622,5.1846,192.85,192.83,0.03929075]
[1739697271721,0.03457784,192.87,192.83,0.03929075]
[1739697272814,5.1848,192.84,192.83,0.03929075]
[1739697277825,5.1844,192.86,192.83,0.03929075]
[1739697278020,0.03457784,192.87,192.84,7.4305618]
[1739697279127,5.21867784,192.87,192.84,12.6152618]
[1739697280228,5.1844,192.86,192.83,5.22439075]
[1739697281120,5.1844,192.86,192.83,0.03929075]
[1739697281829,5.1848,192.85,192.83,0.03929075]
[1739697282525,0.03457784,192.87,192.83,0.03929075]
[1739697282732,5.1848,192.84,192.83,0.03929075]
[1739697297344,10.6628618,192.86,192.78,12.6169618]
[1739697297647,7.4305618,192.84,192.78,5.1864]
[1739697298540,0.03545114,192.83,192.79,0.03709714]
[1739697298943,5.1854,192.82,192.79,0.03709714]
[1739697299143,5.1854,192.82,192.79,5.22319714]
[1739697299345,0.03545114,192.83,192.79,0.03709714]
[1739697299747,0.03545114,192.83,192.79,5.22319714]
[1739697300346,5.1854,192.82,192.79,5.22319714]
[1739697300747,5.1859,192.8,192.79,0.03709714]
[1739697302050,12.6164618,192.8,192.79,0.03709714]
[1739697302250,5.1873,192.75,192.72,7.4305618]
[1739697302853,5.1876,192.74,192.72,7.4305618]
[1739697304158,0.03667966,192.75,192.72,7.4305618]
[1739697304359,5.1878,192.73,192.71,0.03955966]
[1739697305253,5.1876,192.74,192.71,0.03955966]
[1739697306158,0.03667966,192.75,192.71,0.03955966]
[1739697306356,5.1878,192.73,192.71,0.03955966]
[1739697306856,0.03667966,192.75,192.71,0.03955966]
[1739697307057,5.1881,192.72,192.71,0.03955966]
[1739697312762,5.1879,192.73,192.71,0.03955966]
[1739697313656,0.03667966,192.75,192.71,0.03955966]
[1739697314255,0.03667966,192.75,192.72,7.4305618]
[1739697314463,0.03667966,192.75,192.72,12.6185618]
[1739697314860,0.03667966,192.75,192.72,7.4305618]
[1739697315061,5.1876,192.74,192.71,0.03955966]
[1739697315262,0.03667966,192.75,192.71,0.03955966]
[1739697317468,0.03667966,192.75,192.72,7.4305618]
[1739697318067,5.22397966,192.75,192.72,12.6185618]
[1739697318266,5.22397966,192.75,192.71,0.03955966]
[1739697318567,5.22397966,192.75,192.71,5.22785966]
[1739697319269,5.1876,192.74,192.71,0.03955966]
[1739697321168,0.03667966,192.75,192.71,0.03955966]
[1739697321369,5.1881,192.72,192.71,0.03955966]
[1739697323474,5.1879,192.73,192.71,0.03955966]
[1739697323671,0.03667966,192.75,192.71,0.03955966]
[1739697324071,5.1878,192.74,192.71,0.03955966]
[1739697324773,5.1879,192.73,192.71,0.03955966]
[1739697324970,0.03667966,192.75,192.71,0.03955966]
[1739697325376,5.188,192.73,192.71,0.03955966]
[1739697325578,0.03667966,192.75,192.71,0.03955966]
[1739697325975,5.188,192.73,192.71,0.03955966]
[1739697326777,5.1881,192.72,192.71,0.03955966]
[1739697335288,7.4305618,192.72,192.64,7.4305618]
[1739697335582,194.5432,192.77,192.6,7.4305618]
[1739697335583,7.4305618,192.68,192.6,7.4305618]
[1739697335989,5.1907,192.63,192.58,7.4305618]
[1739697336190,7.4305618,192.66,192.58,7.4305618]
[1739697336489,0.03350356,192.64,192.6,0.03763737]
[1739697337290,0.03350356,192.64,192.6,7.46819917]
[1739697337486,0.03350356,192.64,192.61,5.191]
[1739697338193,0.03350356,192.64,192.62,5.1907]
[1739697338394,0.03350356,192.64,192.6,7.46819917]
[1739697340095,0.03350356,192.64,192.61,5.191]
[1739697340391,0.03350356,192.64,192.6,7.46819917]
[1739697341186,0.03350356,192.64,192.62,5.1905]
[1739697343391,0.03350356,192.64,192.63,5.1905]
[1739697362401,75.60816335,192.74,192.62,7.4305618]
[1739697362601,75.60816335,192.74,192.56,12.0367]
[1739697362602,75.60816335,192.74,192.65,7.4305618]
[1739697363502,5.22282159,192.71,192.67,5.227311]
[1739697363901,0.03442159,192.71,192.67,5.227311]
[1739697364100,5.1886,192.7,192.67,5.227311]
[1739697364601,5.1886,192.7,192.67,0.038011]
[1739697365404,5.1889,192.69,192.67,0.038011]
[1739697365595,0.03442159,192.71,192.67,0.038011]
[1739697365902,0.03442159,192.71,192.67,5.227311]
[1739697366608,5.22282159,192.71,192.67,5.227311]
[1739697366806,0.03442159,192.71,192.67,7.4685728]
[1739697367203,0.03442159,192.71,192.69,5.1888]
[1739697367804,0.03442159,192.71,192.7,5.1886]
[1739697369104,7.4305618,192.8,192.75,5.1871]
[1739697369304,5.1863,192.79,192.75,5.1871]
[1739697369505,5.1863,192.79,192.73,7.4305618]
[1739697369808,5.1863,192.79,192.74,5.1875]
[1739697370205,5.22483381,192.78,192.75,0.03796123]
[1739697372506,5.22483381,192.78,192.75,5.22516123]
[1739697372899,5.22483381,192.78,192.75,0.03796123]
[1739697373300,0.03823381,192.78,192.75,0.03796123]
[1739697374610,5.187,192.76,192.75,0.03796123]
[1739697377508,7.4305618,192.76,192.67,7.4305618]
[1739697377706,7.4305618,192.71,192.63,7.4305618]
[1739697378215,5.1894,192.68,192.63,7.4305618]
[1739697378511,5.1894,192.68,192.63,12.6207618]
[1739697378711,0.03272448,192.67,192.64,0.03865919]
[1739697378907,5.22212448,192.67,192.64,0.03865919]
[1739697382312,5.1898,192.66,192.64,0.03865919]
[1739697386116,5.19,192.65,192.64,0.03865919]
[1739697387613,7.46328628,192.67,192.59,7.4305618]
[1739697388014,1.6667,192.66,192.59,7.4305618]
[1739697388419,5.191,192.61,192.57,12.6225618]
[1739697388616,7.4305618,192.65,192.57,12.6225618]
[1739697388817,0.03402575,192.61,192.57,12.65770403]
[1739697389714,0.03402575,192.61,192.59,5.1916]
[1739697389918,0.03402575,192.61,192.57,7.46570403]
[1739697390314,5.22532575,192.61,192.57,12.65770403]
[1739697392121,5.1913,192.6,192.57,12.65770403]
[1739697392319,0.03402575,192.61,192.6,5.1913]
[1739697393924,0.03402575,192.61,192.59,7.4305618]
[1739697394222,0.03402575,192.61,192.57,7.46570403]
[1739697394524,5.22522575,192.61,192.57,12.65780403]
[1739697395123,0.03402575,192.61,192.57,12.65780403]
[1739697395322,5.1913,192.6,192.57,12.65780403]
[1739697396022,0.03402575,192.61,192.57,12.65780403]
[1739697396323,5.22512575,192.61,192.57,12.65780403]
[1739697399428,0.03402575,192.61,192.58,5.1917]
[1739697399623,0.03402575,192.61,192.57,7.46570403]
[1739697400526,0.03402575,192.61,192.57,12.65780403]
[1739697400926,0.03402575,192.61,192.57,0.03514223]
[1739697401128,7.4305618,192.6,192.57,0.03514223]
[1739697401523,5.1918,192.58,192.57,0.03514223]
[1739697403229,5.1915,192.6,192.57,0.03514223]
[1739697404128,1.67272575,192.61,192.57,0.03514223]
[1739697404729,5.1915,192.6,192.57,0.03514223]
[1739697405326,1.67272575,192.61,192.57,0.03514223]
[1739697405627,0.03402575,192.61,192.59,5.1914]
[1739697406833,0.03402575,192.61,192.58,5.1918]
[1739697407026,0.03402575,192.61,192.57,7.46570403]
[1739697408126,0.03402575,192.61,192.57,0.03514223]
[1739697408933,5.1915,192.6,192.57,0.03514223]
[1739697409123,0.03402575,192.61,192.57,0.03514223]
[1739697410028,5.1914,192.6,192.57,0.03514223]
[1739697410429,5.1917,192.59,192.57,0.03514223]
[1739697410630,0.03402575,192.61,192.57,0.03514223]
[1739697411231,5.1914,192.6,192.57,0.03514223]
[1739697413440,5.1916,192.59,192.57,0.03514223]
[1739697414340,5.1918,192.58,192.57,0.03514223]
[1739697416040,5.1916,192.59,192.57,0.03514223]
[1739697416347,0.03402575,192.61,192.57,0.03514223]
[1739697417746,5.1914,192.6,192.57,0.03514223]
[1739697419540,5.1914,192.6,192.57,5.22724223]
[1739697420152,0.03402575,192.61,192.57,5.22724223]
[1739697420351,0.03402575,192.61,192.59,7.4305618]
[1739697421352,0.03402575,192.61,192.6,5.1913]
[1739697422750,0.03402575,192.61,192.59,7.4305618]
[1739697422954,5.22512575,192.61,192.57,7.46570403]
[1739697423353,0.03402575,192.61,192.57,12.65780403]
[1739697423655,5.1913,192.6,192.57,7.46570403]
[1739697424052,0.03402575,192.61,192.57,7.46570403]
[1739697424258,5.22512575,192.61,192.57,7.46570403]
[1739697424654,5.22512575,192.61,192.57,12.65780403]
[1739697425260,5.1914,192.6,192.57,0.03514223]
[1739697425453,0.03402575,192.61,192.57,0.03514223]
[1739697426358,0.03402575,192.61,192.57,7.46570403]
[1739697426957,0.03402575,192.61,192.59,7.4305618]
[1739697427453,0.03402575,192.61,192.59,12.6219618]
[1739697428249,0.03402575,192.61,192.6,5.1913]
[1739697430258,0.03402575,192.61,192.59,7.4305618]
[1739697430658,0.03402575,192.61,192.57,7.46570403]
[1739697430859,0.03402575,192.61,192.57,12.65760403]
[1739697432158,5.22512575,192.61,192.57,12.65760403]
[1739697432559,0.03402575,192.61,192.57,7.46570403]
[1739697432760,5.1915,192.6,192.57,7.46570403]
[1739697432956,0.03402575,192.61,192.57,7.46570403]
[1739697434361,5.1914,192.6,192.57,0.03514223]
[1739697434865,0.03402575,192.61,192.57,0.03514223]
[1739697436067,5.1918,192.59,192.57,0.03514223]
[1739697438568,0.03402575,192.61,192.57,0.03514223]
[1739697438770,5.1918,192.58,192.57,0.03514223]
[1739697441269,12.6223618,192.58,192.57,0.03514223]
[1739697444177,7.4305618,192.58,192.51,7.4305618]
[1739697444375,5.1929,192.55,192.51,7.4305618]
[1739697444576,7.4305618,192.58,192.51,7.4305618]
[1739697445277,5.1923,192.57,192.51,7.4305618]
[1739697445576,0.03361744,192.56,192.53,0.03983567]
[1739697446278,5.22611744,192.56,192.53,0.03983567]
[1739697449279,0.03361744,192.56,192.53,0.03983567]
[1739697449477,5.1929,192.55,192.53,0.03983567]
[1739697450278,5.1929,192.54,192.53,0.03983567]
[1739697450480,0.03361744,192.56,192.53,0.03983567]
[1739697451080,5.1929,192.55,192.53,0.03983567]
[1739697451573,0.03361744,192.56,192.53,0.03983567]
[1739697452178,5.1927,192.55,192.53,0.03983567]
[1739697453381,5.1929,192.54,192.53,0.03983567]
[1739697454782,0.03361744,192.56,192.53,0.03983567]
[1739697454983,5.1929,192.55,192.53,0.03983567]
[1739697455177,0.03361744,192.56,192.53,0.03983567]
[1739697455377,5.1929,192.54,192.53,0.03983567]
[1739697455580,12.6234618,192.54,192.53,0.03983567]
[1739697456180,5.1936,192.52,192.48,5.1945]
[1739697456481,5.1936,192.52,192.47,7.4305618]
[1739697457179,0.03640705,192.51,192.48,0.03743068]
[1739697457379,0.03640705,192.51,192.49,5.1941]
[1739697457777,0.03640705,192.51,192.48,0.03743068]
[1739697458080,0.03640705,192.51,192.49,7.4305618]
[1739697458476,0.03640705,192.51,192.5,5.194]
[1739697459077,0.03640705,192.51,192.49,12.6247618]
[1739697461382,0.03640705,192.51,192.5,5.194]
[1739697462077,0.03640705,192.51,192.49,7.4305618]
[1739697462278,0.03640705,192.51,192.49,12.6247618]
[1739697462682,0.03640705,192.51,192.48,0.03743068]
[1739697463079,5.1943,192.49,192.48,0.03743068]
[1739697473493,7.4305618,192.5,192.41,7.4305618]
[1739697474090,5.1955,192.45,192.41,7.4305618]
[1739697474686,5.23113281,192.45,192.41,12.66341059]
[1739697475191,0.03563281,192.45,192.41,12.66341059]
[1739697476190,0.03563281,192.45,192.41,7.46721059]
[1739697476887,5.23123281,192.45,192.41,12.66361059]
[1739697477093,0.03563281,192.45,192.41,7.46721059]
[1739697477393,5.23103281,192.45,192.41,7.46721059]
[1739697477593,0.03563281,192.45,192.41,7.46721059]
[1739697478186,0.03563281,192.45,192.42,5.196]
[1739697478390,0.03563281,192.45,192.41,7.46721059]
[1739697478592,0.03563281,192.45,192.43,7.4305618]
[1739697478787,0.03563281,192.45,192.43,12.6262618]
[1739697479193,0.03563281,192.45,192.43,7.4305618]
[1739697480198,0.03563281,192.45,192.41,7.46721059]
[1739697480388,0.03563281,192.45,192.43,5.1958]
[1739697480592,0.03563281,192.45,192.41,7.46721059]
[1739697482101,0.03563281,192.45,192.43,5.1957]
[1739697482301,0.03563281,192.45,192.41,7.46721059]
[1739697482302,5.23103281,192.45,192.41,7.46721059]
[1739697482799,0.03563281,192.45,192.42,5.1959]
[1739697483005,0.03563281,192.45,192.41,7.46721059]
[1739697483408,0.03563281,192.45,192.44,7.4305618]
[1739697485607,5.1957,192.44,192.42,7.4305618]
[1739697485809,0.03563281,192.45,192.42,7.4305618]
[1739697486003,0.03563281,192.45,192.42,12.6265618]
[1739697486203,0.03563281,192.45,192.42,7.4305618]
[1739697486703,5.1962,192.42,192.41,0.03664879]
[1739697487411,5.23103281,192.45,192.41,0.03664879]
[1739697487598,0.03563281,192.45,192.42,7.4305618]
[1739697488003,5.23123281,192.45,192.42,7.4305618]
[1739697488200,0.03563281,192.45,192.42,7.4305618]
[1739697490310,5.1959,192.43,192.41,0.03664879]
[1739697491710,5.1957,192.44,192.41,5.23304879]
[1739697491901,0.03563281,192.45,192.42,7.4305618]
[1739697492500,5.1958,192.44,192.42,7.4305618]
[1739697493109,5.1959,192.43,192.42,7.4305618]
[1739697493311,0.03563281,192.45,192.41,0.03664879]
[1739697493907,0.03563281,192.45,192.42,7.4305618]
[1739697494109,0.03563281,192.45,192.44,12.6261618]
[1739697494414,0.03563281,192.45,192.42,7.4305618]
[1739697494910,0.03563281,192.45,192.42,12.6266618]
[1739697495209,0.03563281,192.45,192.41,0.03664879]
[1739697495911,5.1962,192.42,192.41,0.03664879]
[1739697498915,5.1964,192.41,192.4,0.22548]
[1739697499116,9.0109618,192.44,192.36,7.4305618]
[1739697499906,0.0389207,192.42,192.36,7.4305618]
[1739697501111,5.2353207,192.42,192.37,5.1972]
[1739697501315,0.0389207,192.42,192.36,7.4305618]
[1739697501910,5.2351207,192.42,192.37,5.1974]
[1739697502216,5.2351207,192.42,192.26,0.5025]
[1739697502217,7.4305618,192.38,192.26,7.4305618]
[1739697502414,5.1988,192.33,192.27,5.2]
[1739697502715,0.03316526,192.34,192.27,5.2]
[1739697503115,5.1989,192.32,192.26,12.6309618]
[1739697503318,7.4305618,192.33,192.26,7.4305618]
[1739697503815,7.4305618,192.33,192.26,12.6309618]
[1739697504020,7.4305618,192.33,192.26,7.4305618]
[1739697504206,0.03316526,192.34,192.26,7.4305618]
[1739697504407,5.1993,192.31,192.26,7.4305618]
[1739697504615,0.03316526,192.34,192.26,7.4305618]
[1739697504815,7.4305618,192.33,192.24,35.98895852]
[1739697505216,7.4305618,192.33,192.26,7.4305618]
[1739697506211,5.1992,192.31,192.26,7.4305618]
[1739697506909,7.4305618,192.33,192.26,7.4305618]
[1739697507414,0.03316526,192.34,192.26,7.4305618]
[1739697507615,0.03316526,192.34,192.3,7.4305618]
[1739697507914,3.274,192.37,192.3,7.4305618]
[1739697508217,3.274,192.37,192.32,7.4305618]
[1739697508218,0.03880386,192.34,192.32,7.4305618]
[1739697508417,3.274,192.37,192.32,7.4305618]
[1739697508720,0.03890389,192.35,192.34,7.4305618]
[1739697509016,193.0,192.41,192.34,7.4305618]
[1739697509317,0.03476779,192.39,192.38,12.6277618]
[1739697509508,5.196,192.43,192.38,12.6277618]
[1739697509715,0.0391536,192.4,192.38,12.6277618]
[1739697510217,0.0391536,192.4,192.36,7.4305618]
[1739697510519,5.1963,192.42,192.36,7.4305618]
[1739697510720,0.03730687,192.4,192.36,7.4305618]